[Event "Late-Titled-Tuesday-Blitz-September-12-2023"]
[Site "Chess.com"]
[Date "2023.09.12"]
[Round "6"]
[White "vladislavkovalev"]
[Black "DeTimmerman"]
[Result "1-0"]
[WhiteElo "2903"]
[BlackElo "2634"]
[TimeControl "180+1"]
[EndTime "15:04:31 PDT"]
[Termination "vladislavkovalev won by resignation"]

1. e4 {[%clk 0:02:57.2]} 1... e5 {[%clk 0:02:59.7]} 2. Nf3 {[%clk 0:02:57.1]}
2... Nc6 {[%clk 0:02:59.7]} 3. Bb5 {[%clk 0:02:57.4]} 3... f5 {[%clk 0:02:59.7]}
4. Nc3 {[%clk 0:02:52.4]} 4... fxe4 {[%clk 0:02:59.4]} 5. Nxe4 {[%clk 0:02:45]}
5... d5 {[%clk 0:03:00.3]} 6. Nxe5 {[%clk 0:02:33.6]} 6... dxe4 {[%clk
0:03:01.2]} 7. Nxc6 {[%clk 0:02:34.2]} 7... Qg5 {[%clk 0:03:01.4]} 8. Nd4+
{[%clk 0:02:01.7]} 8... c6 {[%clk 0:02:59.8]} 9. Bf1 {[%clk 0:02:00.3]} 9... Bc5
{[%clk 0:02:59.1]} 10. d3 {[%clk 0:01:55.9]} 10... Qe5 {[%clk 0:02:51.6]} 11. c3
{[%clk 0:01:55.7]} 11... exd3+ {[%clk 0:02:50.9]} 12. Be3 {[%clk 0:01:55.9]}
12... Nf6 {[%clk 0:02:42.8]} 13. Bxd3 {[%clk 0:01:48]} 13... O-O {[%clk
0:02:38.8]} 14. Qb3+ {[%clk 0:01:34.2]} 14... Kh8 {[%clk 0:02:18.9]} 15. O-O-O
{[%clk 0:01:34.5]} 15... Nd5 {[%clk 0:02:13.3]} 16. Rhe1 {[%clk 0:01:20.7]}
16... Nxe3 {[%clk 0:02:13.2]} 17. Rxe3 {[%clk 0:01:21.6]} 17... Qg5 {[%clk
0:02:13.7]} 18. Kb1 {[%clk 0:01:13.6]} 18... Bg4 {[%clk 0:02:09.7]} 19. Ne6
{[%clk 0:00:46.8]} 19... Bxd1 {[%clk 0:01:11.9]} 20. Qxd1 {[%clk 0:00:39.7]}
20... Bxe3 {[%clk 0:01:11.8]} 21. Nxg5 {[%clk 0:00:39.3]} 21... Bxg5 {[%clk
0:01:11.9]} 22. Qg4 {[%clk 0:00:29.8]} 22... Rad8 {[%clk 0:00:59.2]} 23. Qxg5
{[%clk 0:00:27.7]} 23... Rxd3 {[%clk 0:00:58.2]} 24. Qe7 {[%clk 0:00:28.4]}
24... Rfd8 {[%clk 0:00:54.7]} 25. Qxb7 {[%clk 0:00:27.6]} 25... Rd1+ {[%clk
0:00:54.8]} 26. Kc2 {[%clk 0:00:27.9]} 26... R1d2+ {[%clk 0:00:55.7]} 27. Kb3
{[%clk 0:00:28.4]} 27... Rxf2 {[%clk 0:00:56.6]} 28. a4 {[%clk 0:00:16.8]} 28...
Rxg2 {[%clk 0:00:51]} 29. Qxa7 {[%clk 0:00:13]} 29... h6 {[%clk 0:00:49.3]} 30.
a5 {[%clk 0:00:10.7]} 30... Rdd2 {[%clk 0:00:47.2]} 31. Qb8+ {[%clk 0:00:09.8]}
31... Kh7 {[%clk 0:00:47.5]} 32. Ka2 {[%clk 0:00:10.5]} 32... Rd5 {[%clk
0:00:45.4]} 33. Qb4 {[%clk 0:00:03.4]} 33... Rxh2 {[%clk 0:00:32.3]} 34. a6
{[%clk 0:00:03.2]} 34... Rb5 {[%clk 0:00:32.3]} 35. Qa3 {[%clk 0:00:02.4]} 35...
Rb8 {[%clk 0:00:29.3]} 36. a7 {[%clk 0:00:03.2]} 36... Ra8 {[%clk 0:00:29.2]}
37. Qa6 {[%clk 0:00:03.9]} 37... Rf2 {[%clk 0:00:23.2]} 38. Qb7 {[%clk
0:00:04.5]} 38... Rff8 {[%clk 0:00:23.3]} 39. b4 {[%clk 0:00:04.9]} 39... h5
{[%clk 0:00:23.7]} 40. c4 {[%clk 0:00:05.6]} 40... h4 {[%clk 0:00:24.1]} 41. b5
{[%clk 0:00:06.4]} 41... h3 {[%clk 0:00:23.2]} 42. b6 {[%clk 0:00:05.8]} 42...
Rfc8 {[%clk 0:00:22.4]} 43. Qxc8 {[%clk 0:00:03.8]} 43... Rxc8 {[%clk
0:00:21.3]} 44. b7 {[%clk 0:00:04.6]} 44... h2 {[%clk 0:00:18.8]} 45. bxc8=Q
{[%clk 0:00:04.2]} 45... h1=Q {[%clk 0:00:19.7]} 46. Qf5+ {[%clk 0:00:04.4]}
46... Kh6 {[%clk 0:00:17.1]} 47. a8=Q {[%clk 0:00:04.6]} 47... Qg2+ {[%clk
0:00:15.4]} 48. Kb3 {[%clk 0:00:05]} 48... Qg3+ {[%clk 0:00:15.1]} 49. Ka4
{[%clk 0:00:04.2]} 1-0

[Event "Late-Titled-Tuesday-Blitz-September-12-2023"]
[Site "Chess.com"]
[Date "2023.09.12"]
[Round "6"]
[White "NovikovaGalina"]
[Black "K_A_S_T_O_R"]
[Result "0-1"]
[WhiteElo "2430"]
[BlackElo "2929"]
[TimeControl "180+1"]
[EndTime "15:04:33 PDT"]
[Termination "K_A_S_T_O_R won on time"]

1. e4 {[%clk 0:03:00.9]} 1... c5 {[%clk 0:02:59.4]} 2. Nf3 {[%clk 0:03:01.3]}
2... d6 {[%clk 0:02:59.5]} 3. d4 {[%clk 0:03:01.4]} 3... cxd4 {[%clk 0:02:59.8]}
4. Nxd4 {[%clk 0:03:02.3]} 4... Nf6 {[%clk 0:03:00.1]} 5. Nc3 {[%clk 0:03:02.9]}
5... a6 {[%clk 0:03:00.7]} 6. Rg1 {[%clk 0:03:03.5]} 6... Nc6 {[%clk 0:02:51.5]}
7. g4 {[%clk 0:03:02.4]} 7... g6 {[%clk 0:02:45]} 8. Be3 {[%clk 0:02:59.1]} 8...
Bg7 {[%clk 0:02:43.4]} 9. f3 {[%clk 0:02:59.3]} 9... Be6 {[%clk 0:02:08.8]} 10.
Qd2 {[%clk 0:02:58.3]} 10... Rc8 {[%clk 0:02:06.6]} 11. O-O-O {[%clk 0:02:57.5]}
11... Nxd4 {[%clk 0:02:05.7]} 12. Bxd4 {[%clk 0:02:57.1]} 12... Qa5 {[%clk
0:02:04.6]} 13. g5 {[%clk 0:02:38.8]} 13... Nh5 {[%clk 0:02:00.6]} 14. Bxg7
{[%clk 0:02:38.1]} 14... Nxg7 {[%clk 0:02:01.2]} 15. Qd4 {[%clk 0:02:30.7]}
15... O-O {[%clk 0:02:00.7]} 16. a3 {[%clk 0:02:26.5]} 16... Rc6 {[%clk
0:01:57.5]} 17. f4 {[%clk 0:01:40.6]} 17... Rfc8 {[%clk 0:01:53.2]} 18. Rd3
{[%clk 0:01:19.8]} 18... Bc4 {[%clk 0:01:48.9]} 19. Rf3 {[%clk 0:01:13.2]} 19...
Ne6 {[%clk 0:01:48.4]} 20. Qe3 {[%clk 0:01:09.8]} 20... Bxf1 {[%clk 0:01:41]}
21. Rgxf1 {[%clk 0:01:10.1]} 21... Qc5 {[%clk 0:01:33.4]} 22. Qxc5 {[%clk
0:00:57]} 22... Rxc5 {[%clk 0:01:29.2]} 23. h4 {[%clk 0:00:57.4]} 23... Nd4
{[%clk 0:01:26.8]} 24. Rd3 {[%clk 0:00:52.7]} 24... Nb5 {[%clk 0:01:18.7]} 25.
Nxb5 {[%clk 0:00:33.3]} 25... Rxc2+ {[%clk 0:01:16.8]} 26. Kb1 {[%clk
0:00:34.2]} 26... axb5 {[%clk 0:01:17]} 27. f5 {[%clk 0:00:29.9]} 27... Re2
{[%clk 0:01:12]} 28. fxg6 {[%clk 0:00:27.4]} 28... hxg6 {[%clk 0:01:11.6]} 29.
Rdf3 {[%clk 0:00:24.5]} 29... Rf8 {[%clk 0:01:11.2]} 30. Rf4 {[%clk 0:00:22.3]}
30... Kg7 {[%clk 0:01:08.5]} 31. Ka2 {[%clk 0:00:21.3]} 31... e5 {[%clk
0:00:59.5]} 32. Rf6 {[%clk 0:00:06]} 32... Rxe4 {[%clk 0:00:47.4]} 33. Rxd6
{[%clk 0:00:06]} 33... Rxh4 {[%clk 0:00:47.2]} 34. Rd7 {[%clk 0:00:02.5]} 34...
Rg4 {[%clk 0:00:38.3]} 35. Rxb7 {[%clk 0:00:02.5]} 35... Rxg5 {[%clk 0:00:36.4]}
36. Rxb5 {[%clk 0:00:02.6]} 36... Re8 {[%clk 0:00:32.7]} 37. a4 {[%clk
0:00:02.1]} 37... Rg4 {[%clk 0:00:32.8]} 38. Ka3 {[%clk 0:00:01.6]} 38... f5
{[%clk 0:00:27.4]} 39. a5 {[%clk 0:00:01.5]} 39... e4 {[%clk 0:00:25.6]} 40. b4
{[%clk 0:00:01.1]} 40... e3 {[%clk 0:00:24.8]} 41. Rb7+ {[%clk 0:00:01.2]} 41...
Kh6 {[%clk 0:00:24.8]} 42. a6 {[%clk 0:00:02.1]} 42... e2 {[%clk 0:00:24.8]} 43.
Re1 {[%clk 0:00:02.4]} 43... Rg3+ {[%clk 0:00:23.1]} 44. Ka4 {[%clk 0:00:02.3]}
44... Rd3 {[%clk 0:00:16.2]} 45. a7 {[%clk 0:00:02]} 45... Rdd8 {[%clk
0:00:16.6]} 46. b5 {[%clk 0:00:01.9]} 46... f4 {[%clk 0:00:16.7]} 47. b6 {[%clk
0:00:02.2]} 47... Re4+ {[%clk 0:00:12.2]} 48. Ka5 {[%clk 0:00:01.6]} 48... Rd5+
{[%clk 0:00:12.2]} 0-1

[Event "Late-Titled-Tuesday-Blitz-September-12-2023"]
[Site "Chess.com"]
[Date "2023.09.12"]
[Round "6"]
[White "dennisodessa"]
[Black "Ali_rastbod"]
[Result "0-1"]
[WhiteElo "2526"]
[BlackElo "2710"]
[TimeControl "180+1"]
[EndTime "15:04:37 PDT"]
[Termination "Ali_rastbod won by resignation"]

1. d4 {[%clk 0:02:56.8]} 1... d5 {[%clk 0:02:59.7]} 2. c4 {[%clk 0:02:57.3]}
2... e5 {[%clk 0:02:53.8]} 3. dxe5 {[%clk 0:02:56.6]} 3... d4 {[%clk 0:02:54.3]}
4. a3 {[%clk 0:02:57.3]} 4... a5 {[%clk 0:02:53.7]} 5. Nf3 {[%clk 0:02:51.8]}
5... Nc6 {[%clk 0:02:53.2]} 6. e3 {[%clk 0:02:52.5]} 6... Bc5 {[%clk 0:02:53.1]}
7. exd4 {[%clk 0:02:40.8]} 7... Bxd4 {[%clk 0:02:54]} 8. Be2 {[%clk 0:02:31.5]}
8... Nge7 {[%clk 0:02:47.6]} 9. O-O {[%clk 0:02:28.6]} 9... O-O {[%clk
0:02:44.7]} 10. Nbd2 {[%clk 0:02:17.2]} 10... Nxe5 {[%clk 0:02:39.2]} 11. Nxd4
{[%clk 0:02:15]} 11... Qxd4 {[%clk 0:02:36.6]} 12. Nf3 {[%clk 0:02:15.1]} 12...
Nxf3+ {[%clk 0:02:35.6]} 13. Bxf3 {[%clk 0:02:16]} 13... Qxc4 {[%clk 0:02:36.1]}
14. Bg5 {[%clk 0:02:06.6]} 14... Ng6 {[%clk 0:02:21]} 15. Rc1 {[%clk 0:01:58.6]}
15... Qb5 {[%clk 0:02:21.5]} 16. h4 {[%clk 0:01:54.9]} 16... c6 {[%clk
0:02:18.1]} 17. Qe2 {[%clk 0:01:46.9]} 17... Qxe2 {[%clk 0:02:10.9]} 18. Bxe2
{[%clk 0:01:47.8]} 18... f6 {[%clk 0:01:43.6]} 19. h5 {[%clk 0:01:46.8]} 19...
fxg5 {[%clk 0:01:44]} 20. hxg6 {[%clk 0:01:47.4]} 20... h6 {[%clk 0:01:44.6]}
21. Bc4+ {[%clk 0:01:36.3]} 21... Kh8 {[%clk 0:01:45]} 22. Rfe1 {[%clk
0:01:35.7]} 22... Bf5 {[%clk 0:01:43]} 23. Re7 {[%clk 0:01:33.7]} 23... Bxg6
{[%clk 0:01:22]} 24. Rxb7 {[%clk 0:01:33.1]} 24... Rf6 {[%clk 0:01:18.1]} 25.
Bb3 {[%clk 0:01:21.6]} 25... a4 {[%clk 0:01:12.7]} 26. Bc2 {[%clk 0:01:19.6]}
26... Ra5 {[%clk 0:01:03.2]} 27. Bxg6 {[%clk 0:01:17.7]} 27... Rxg6 {[%clk
0:01:01.6]} 28. Rb6 {[%clk 0:01:08.1]} 28... Rb5 {[%clk 0:00:59.3]} 29. Rxb5
{[%clk 0:01:08]} 29... cxb5 {[%clk 0:00:59.4]} 30. Rc8+ {[%clk 0:01:08.9]} 30...
Kh7 {[%clk 0:00:59.6]} 31. Rb8 {[%clk 0:01:09.8]} 31... Rc6 {[%clk 0:00:54.6]}
32. f3 {[%clk 0:01:01.6]} 32... Rc1+ {[%clk 0:00:52.9]} 33. Kh2 {[%clk
0:00:59.7]} 33... Rc5 {[%clk 0:00:53.2]} 34. Kg3 {[%clk 0:00:58]} 34... Kg6
{[%clk 0:00:48.7]} 35. Kh3 {[%clk 0:00:50.8]} 35... Kf5 {[%clk 0:00:46.2]} 36.
Rb7 {[%clk 0:00:47.2]} 36... g6 {[%clk 0:00:45]} 37. Rb6 {[%clk 0:00:46.9]}
37... h5 {[%clk 0:00:23.2]} 38. g4+ {[%clk 0:00:32.4]} 38... Kf4 {[%clk
0:00:20.2]} 39. Rf6+ {[%clk 0:00:24.1]} 39... Ke3 {[%clk 0:00:19.1]} 40. Rxg6
{[%clk 0:00:24.3]} 40... h4 {[%clk 0:00:18.6]} 41. Rf6 {[%clk 0:00:20.6]} 41...
b4 {[%clk 0:00:16.7]} 42. axb4 {[%clk 0:00:19.3]} 42... Rb5 {[%clk 0:00:17.1]}
43. Rf5 {[%clk 0:00:19.8]} 43... Rxb4 {[%clk 0:00:17]} 44. Rxg5 {[%clk
0:00:20.2]} 44... Kxf3 {[%clk 0:00:05.7]} 45. Ra5 {[%clk 0:00:13.5]} 45... Rxg4
{[%clk 0:00:04]} 46. Rf5+ {[%clk 0:00:13.4]} 46... Rf4 {[%clk 0:00:04.5]} 47.
Rxf4+ {[%clk 0:00:10.6]} 47... Kxf4 {[%clk 0:00:04.8]} 48. Kxh4 {[%clk
0:00:11.5]} 48... Ke3 {[%clk 0:00:05.3]} 49. Kg3 {[%clk 0:00:12.4]} 49... Kd2
{[%clk 0:00:05.8]} 50. Kf2 {[%clk 0:00:13.3]} 50... Kc2 {[%clk 0:00:06.4]} 51.
Ke2 {[%clk 0:00:14.2]} 51... Kxb2 {[%clk 0:00:07]} 52. Kd2 {[%clk 0:00:15.1]}
52... a3 {[%clk 0:00:07.6]} 0-1

[Event "Late-Titled-Tuesday-Blitz-September-12-2023"]
[Site "Chess.com"]
[Date "2023.09.12"]
[Round "6"]
[White "MathiasWomacka"]
[Black "AlexanderL"]
[Result "1/2-1/2"]
[WhiteElo "2531"]
[BlackElo "2850"]
[TimeControl "180+1"]
[EndTime "15:04:38 PDT"]
[Termination "Game drawn - insufficient material"]

1. e4 {[%clk 0:03:00.9]} 1... e5 {[%clk 0:02:59.7]} 2. Nf3 {[%clk 0:02:59.4]}
2... Nf6 {[%clk 0:02:59.9]} 3. Nxe5 {[%clk 0:02:58.4]} 3... Nxe4 {[%clk
0:03:00.1]} 4. Qe2 {[%clk 0:02:56.8]} 4... Qe7 {[%clk 0:03:00]} 5. Qxe4 {[%clk
0:02:56.7]} 5... d6 {[%clk 0:03:00.3]} 6. d4 {[%clk 0:02:55.6]} 6... dxe5 {[%clk
0:03:00.6]} 7. dxe5 {[%clk 0:02:55.7]} 7... Nc6 {[%clk 0:03:00.4]} 8. Nc3 {[%clk
0:02:52.3]} 8... Qxe5 {[%clk 0:02:57.1]} 9. Bf4 {[%clk 0:02:49.6]} 9... Qxe4+
{[%clk 0:02:56.3]} 10. Nxe4 {[%clk 0:02:50.5]} 10... Bf5 {[%clk 0:02:56.5]} 11.
Bd3 {[%clk 0:02:21]} 11... O-O-O {[%clk 0:02:55.7]} 12. Nd6+ {[%clk 0:02:14.7]}
12... Bxd6 {[%clk 0:02:55]} 13. Bxf5+ {[%clk 0:02:14.5]} 13... Kb8 {[%clk
0:02:55.3]} 14. Be3 {[%clk 0:02:12.4]} 14... Be5 {[%clk 0:02:49]} 15. c3 {[%clk
0:02:11]} 15... Ne7 {[%clk 0:02:49]} 16. Bc2 {[%clk 0:02:08.5]} 16... Nd5 {[%clk
0:02:48.8]} 17. Bg5 {[%clk 0:01:57.8]} 17... Bf6 {[%clk 0:02:45]} 18. Bxf6
{[%clk 0:01:56.2]} 18... Rhe8+ {[%clk 0:02:44.4]} 19. Kf1 {[%clk 0:01:47.7]}
19... Nxf6 {[%clk 0:02:41.4]} 20. Rd1 {[%clk 0:01:47.4]} 20... Rxd1+ {[%clk
0:02:39.8]} 21. Bxd1 {[%clk 0:01:46.6]} 21... Ne4 {[%clk 0:02:11.5]} 22. g3
{[%clk 0:01:45.5]} 22... Rd8 {[%clk 0:02:11.8]} 23. Bc2 {[%clk 0:01:24.8]} 23...
Nxf2 {[%clk 0:02:05.2]} 24. Kxf2 {[%clk 0:01:23.9]} 24... Rd2+ {[%clk
0:02:04.1]} 25. Kf3 {[%clk 0:01:24.4]} 25... Rxc2 {[%clk 0:02:05]} 26. Re1
{[%clk 0:01:22.7]} 26... b6 {[%clk 0:02:04.5]} 27. Re7 {[%clk 0:01:23]} 27...
Rxb2 {[%clk 0:01:57.1]} 28. Rxf7 {[%clk 0:01:22.8]} 28... Rxh2 {[%clk
0:01:51.9]} 29. Rxg7 {[%clk 0:01:21.9]} 29... h5 {[%clk 0:01:50.3]} 30. a4
{[%clk 0:01:20.8]} 30... h4 {[%clk 0:01:47.4]} 31. g4 {[%clk 0:01:18]} 31...
Rh3+ {[%clk 0:01:41.1]} 32. Kf4 {[%clk 0:01:17.7]} 32... Rxc3 {[%clk 0:01:37.1]}
33. g5 {[%clk 0:01:15.6]} 33... Rc4+ {[%clk 0:01:19.1]} 34. Kf5 {[%clk
0:01:13.7]} 34... Rxa4 {[%clk 0:01:19.2]} 35. Rh7 {[%clk 0:01:05.7]} 35... Ra1
{[%clk 0:01:11.1]} 36. g6 {[%clk 0:01:04.7]} 36... Rf1+ {[%clk 0:01:09.5]} 37.
Ke6 {[%clk 0:01:04.4]} 37... Rg1 {[%clk 0:01:08.8]} 38. Kf6 {[%clk 0:01:04.4]}
38... a5 {[%clk 0:01:01.8]} 39. Rxh4 {[%clk 0:01:03.9]} 39... Kb7 {[%clk
0:00:57.6]} 40. g7 {[%clk 0:01:03.7]} 40... c5 {[%clk 0:00:51.5]} 41. Rh5 {[%clk
0:01:02.3]} 41... Rxg7 {[%clk 0:00:51.3]} 42. Kxg7 {[%clk 0:01:01.8]} 42... a4
{[%clk 0:00:47.8]} 43. Kf6 {[%clk 0:01:00.4]} 43... Ka6 {[%clk 0:00:30.8]} 44.
Ke5 {[%clk 0:01:00.3]} 44... Ka5 {[%clk 0:00:28.7]} 45. Ke4 {[%clk 0:01:00.2]}
45... Kb4 {[%clk 0:00:24.7]} 46. Kd3 {[%clk 0:01:00]} 46... Kb3 {[%clk 0:00:25]}
47. Kd2 {[%clk 0:01:00]} 47... Kb2 {[%clk 0:00:21.9]} 48. Kd3 {[%clk 0:00:52.7]}
48... b5 {[%clk 0:00:19.8]} 49. Rxc5 {[%clk 0:00:51.2]} 49... b4 {[%clk
0:00:20.2]} 50. Rc4 {[%clk 0:00:43.8]} 50... Kb3 {[%clk 0:00:17.9]} 51. Rc8
{[%clk 0:00:15.1]} 51... a3 {[%clk 0:00:16.9]} 52. Ra8 {[%clk 0:00:13.1]} 52...
Ka2 {[%clk 0:00:10.9]} 53. Kc4 {[%clk 0:00:08.2]} 53... Kb2 {[%clk 0:00:10.6]}
54. Kxb4 {[%clk 0:00:07.7]} 54... a2 {[%clk 0:00:11.1]} 55. Rxa2+ {[%clk
0:00:06.9]} 55... Kxa2 {[%clk 0:00:11.6]} 1/2-1/2

[Event "Late-Titled-Tuesday-Blitz-September-12-2023"]
[Site "Chess.com"]
[Date "2023.09.12"]
[Round "6"]
[White "seramoral"]
[Black "Oleksandr_Bortnyk"]
[Result "1-0"]
[WhiteElo "2659"]
[BlackElo "3000"]
[TimeControl "180+1"]
[EndTime "15:04:41 PDT"]
[Termination "seramoral won on time"]

1. e4 {[%clk 0:03:00.9]} 1... Nf6 {[%clk 0:02:59.9]} 2. e5 {[%clk 0:03:00.9]}
2... Nd5 {[%clk 0:03:00.1]} 3. c4 {[%clk 0:02:57.7]} 3... Nb6 {[%clk 0:03:00.1]}
4. d4 {[%clk 0:02:58.4]} 4... d6 {[%clk 0:03:00.5]} 5. exd6 {[%clk 0:02:56.1]}
5... exd6 {[%clk 0:03:01.4]} 6. Nc3 {[%clk 0:02:55.8]} 6... Be7 {[%clk
0:03:01.8]} 7. Bd3 {[%clk 0:02:52.7]} 7... O-O {[%clk 0:03:02.1]} 8. Nge2 {[%clk
0:02:51.1]} 8... c6 {[%clk 0:03:02.7]} 9. Be3 {[%clk 0:02:41.6]} 9... Na6 {[%clk
0:03:02.9]} 10. b3 {[%clk 0:02:38.5]} 10... d5 {[%clk 0:03:00]} 11. c5 {[%clk
0:02:35.4]} 11... Nd7 {[%clk 0:03:00.4]} 12. a3 {[%clk 0:02:35.6]} 12... Nc7
{[%clk 0:03:00.6]} 13. b4 {[%clk 0:02:31.6]} 13... Re8 {[%clk 0:02:58.2]} 14.
O-O {[%clk 0:02:29.3]} 14... g6 {[%clk 0:02:56.9]} 15. a4 {[%clk 0:02:25.9]}
15... Ne6 {[%clk 0:02:55.3]} 16. b5 {[%clk 0:02:23.3]} 16... Bf6 {[%clk
0:02:54.1]} 17. Rc1 {[%clk 0:02:06.1]} 17... Bg7 {[%clk 0:02:52.7]} 18. Qb3
{[%clk 0:01:58.3]} 18... f5 {[%clk 0:02:47.6]} 19. Rfd1 {[%clk 0:01:50.3]} 19...
Qf6 {[%clk 0:02:45.6]} 20. f3 {[%clk 0:01:33.3]} 20... Nexc5 {[%clk 0:02:42.9]}
21. dxc5 {[%clk 0:01:31.5]} 21... Rxe3 {[%clk 0:02:42.9]} 22. bxc6 {[%clk
0:01:17.8]} 22... bxc6 {[%clk 0:02:25.2]} 23. Nxd5 {[%clk 0:01:15.4]} 23... Qf7
{[%clk 0:02:16.1]} 24. Nxe3 {[%clk 0:01:09.4]} 24... Qxb3 {[%clk 0:02:17]} 25.
Bc4+ {[%clk 0:01:09.6]} 25... Qxc4 {[%clk 0:02:17.8]} 26. Nxc4 {[%clk
0:01:10.2]} 26... Bf8 {[%clk 0:02:09.6]} 27. Nd6 {[%clk 0:01:09.6]} 27... Ba6
{[%clk 0:02:09.1]} 28. Nf4 {[%clk 0:01:09]} 28... Ne5 {[%clk 0:02:04.2]} 29. Ne6
{[%clk 0:01:07.6]} 29... Bh6 {[%clk 0:02:00.8]} 30. Rc3 {[%clk 0:01:03.9]} 30...
Rb8 {[%clk 0:01:56.8]} 31. f4 {[%clk 0:00:56]} 31... Ng4 {[%clk 0:01:48.6]} 32.
h3 {[%clk 0:00:54]} 32... Nf6 {[%clk 0:01:48.5]} 33. Nc7 {[%clk 0:00:48.3]}
33... Be2 {[%clk 0:01:42.2]} 34. Rd2 {[%clk 0:00:47.4]} 34... Rb1+ {[%clk
0:01:37.4]} 35. Kf2 {[%clk 0:00:47]} 35... Bd1 {[%clk 0:01:37.6]} 36. g3 {[%clk
0:00:45.2]} 36... Bxa4 {[%clk 0:01:32.5]} 37. Re3 {[%clk 0:00:32.2]} 37... Bf8
{[%clk 0:01:30.9]} 38. Nce8 {[%clk 0:00:29.9]} 38... Nd5 {[%clk 0:01:22.9]} 39.
Ra3 {[%clk 0:00:23.2]} 39... Bb5 {[%clk 0:01:12.8]} 40. Rxa7 {[%clk 0:00:21.6]}
40... Rf1+ {[%clk 0:01:12.5]} 41. Kg2 {[%clk 0:00:21.1]} 41... Ne3+ {[%clk
0:01:13.4]} 42. Kh2 {[%clk 0:00:21.6]} 42... Bxd6 {[%clk 0:01:00.3]} 43. cxd6
{[%clk 0:00:20.8]} 43... c5 {[%clk 0:00:52.6]} 44. Nf6+ {[%clk 0:00:20]} 44...
Kf8 {[%clk 0:00:51.7]} 45. d7 {[%clk 0:00:20.6]} 45... Bxd7 {[%clk 0:00:47.5]}
46. Nxd7+ {[%clk 0:00:21.2]} 46... Kg7 {[%clk 0:00:42.9]} 47. Nxc5+ {[%clk
0:00:21.8]} 47... Kh6 {[%clk 0:00:43.6]} 48. Ne6 {[%clk 0:00:21.1]} 48... g5
{[%clk 0:00:39.2]} 49. Nxg5 {[%clk 0:00:20.5]} 49... Nc4 {[%clk 0:00:36.6]} 50.
Rc2 {[%clk 0:00:19.3]} 50... Nd6 {[%clk 0:00:31.5]} 51. Rc6 {[%clk 0:00:19]}
51... Rd1 {[%clk 0:00:32]} 52. Raa6 {[%clk 0:00:18.7]} 52... Kh5 {[%clk
0:00:28.8]} 53. Rxd6 {[%clk 0:00:18.8]} 53... Rxd6 {[%clk 0:00:29.7]} 54. Rxd6
{[%clk 0:00:17.7]} 54... h6 {[%clk 0:00:30.6]} 55. Rd5 {[%clk 0:00:16.6]} 55...
Kg6 {[%clk 0:00:30.1]} 56. Nf3 {[%clk 0:00:16.4]} 56... Kf6 {[%clk 0:00:30.6]}
57. Nh4 {[%clk 0:00:16.7]} 57... Ke6 {[%clk 0:00:31.5]} 58. Rxf5 {[%clk
0:00:16.9]} 1-0

[Event "Late-Titled-Tuesday-Blitz-September-12-2023"]
[Site "Chess.com"]
[Date "2023.09.12"]
[Round "6"]
[White "Mops_2004"]
[Black "becemix"]
[Result "1-0"]
[WhiteElo "2715"]
[BlackElo "2528"]
[TimeControl "180+1"]
[EndTime "15:04:42 PDT"]
[Termination "Mops_2004 won on time"]

1. g3 {[%clk 0:03:00.9]} 1... d5 {[%clk 0:02:50.4]} 2. Nf3 {[%clk 0:02:58.7]}
2... Bg4 {[%clk 0:02:43.6]} 3. Bg2 {[%clk 0:02:58.5]} 3... Nd7 {[%clk
0:02:43.1]} 4. h3 {[%clk 0:02:58.8]} 4... Bxf3 {[%clk 0:02:42.8]} 5. Bxf3 {[%clk
0:02:59.7]} 5... c6 {[%clk 0:02:41.1]} 6. O-O {[%clk 0:02:59.7]} 6... e5 {[%clk
0:02:37.8]} 7. d3 {[%clk 0:02:59.7]} 7... Ngf6 {[%clk 0:02:37]} 8. Nc3 {[%clk
0:02:53.4]} 8... Qc7 {[%clk 0:02:26.1]} 9. e4 {[%clk 0:02:53.3]} 9... dxe4
{[%clk 0:02:25.4]} 10. Nxe4 {[%clk 0:02:54.2]} 10... Nxe4 {[%clk 0:02:25.3]} 11.
dxe4 {[%clk 0:02:55.1]} 11... Bc5 {[%clk 0:02:25.1]} 12. Kg2 {[%clk 0:02:54.8]}
12... O-O {[%clk 0:02:24.4]} 13. c3 {[%clk 0:02:54.7]} 13... a5 {[%clk
0:02:23.5]} 14. Qc2 {[%clk 0:02:49.5]} 14... Rfe8 {[%clk 0:01:59.3]} 15. Bd2
{[%clk 0:02:48.3]} 15... Nf8 {[%clk 0:01:58.6]} 16. Rad1 {[%clk 0:02:47.9]}
16... Rad8 {[%clk 0:01:58.4]} 17. Bc1 {[%clk 0:02:47.9]} 17... Rxd1 {[%clk
0:01:57]} 18. Rxd1 {[%clk 0:02:48.4]} 18... Rd8 {[%clk 0:01:56.9]} 19. h4 {[%clk
0:02:47.8]} 19... Rxd1 {[%clk 0:01:55.6]} 20. Qxd1 {[%clk 0:02:46.9]} 20... Qd6
{[%clk 0:01:55.3]} 21. Qxd6 {[%clk 0:02:45.8]} 21... Bxd6 {[%clk 0:01:56.1]} 22.
Bg4 {[%clk 0:02:46.1]} 22... Ne6 {[%clk 0:01:42.2]} 23. h5 {[%clk 0:02:28.5]}
23... a4 {[%clk 0:01:36.2]} 24. Be3 {[%clk 0:02:10.9]} 24... Kf8 {[%clk
0:01:34.7]} 25. Kf1 {[%clk 0:02:03]} 25... Ke7 {[%clk 0:01:34.4]} 26. Bd1 {[%clk
0:01:58.1]} 26... b5 {[%clk 0:01:27.6]} 27. Ke2 {[%clk 0:01:57.9]} 27... Nc5
{[%clk 0:01:17.8]} 28. Bc2 {[%clk 0:01:54.3]} 28... g6 {[%clk 0:01:15]} 29. h6
{[%clk 0:01:51]} 29... Ke6 {[%clk 0:01:14.7]} 30. f4 {[%clk 0:01:47.4]} 30...
exf4 {[%clk 0:01:03.6]} 31. gxf4 {[%clk 0:01:46.8]} 31... f5 {[%clk 0:01:03.5]}
32. e5 {[%clk 0:01:30.7]} 32... Bf8 {[%clk 0:01:03.3]} 33. b3 {[%clk 0:01:09.6]}
33... axb3 {[%clk 0:00:51.1]} 34. axb3 {[%clk 0:01:10.5]} 34... Ne4 {[%clk
0:00:49.6]} 35. Kd3 {[%clk 0:00:58]} 35... Bxh6 {[%clk 0:00:48.9]} 36. b4 {[%clk
0:00:58.2]} 36... g5 {[%clk 0:00:29.2]} 37. Bb3+ {[%clk 0:00:52]} 37... Ke7
{[%clk 0:00:29.4]} 38. fxg5 {[%clk 0:00:50.3]} 38... Bxg5 {[%clk 0:00:23.6]} 39.
Bd4 {[%clk 0:00:37.7]} 39... h6 {[%clk 0:00:13.1]} 40. c4 {[%clk 0:00:37.8]}
40... Nd2 {[%clk 0:00:12.5]} 41. Bc5+ {[%clk 0:00:29]} 41... Kd7 {[%clk
0:00:09.5]} 42. e6+ {[%clk 0:00:20.4]} 42... Kc7 {[%clk 0:00:09.8]} 43. Ba2
{[%clk 0:00:08.5]} 43... Nxc4 {[%clk 0:00:08.9]} 44. Kd4 {[%clk 0:00:02.8]}
44... Bf6+ {[%clk 0:00:06.5]} 45. Kd3 {[%clk 0:00:02.5]} 45... h5 {[%clk
0:00:06.4]} 46. Ke2 {[%clk 0:00:02.1]} 46... Bg5 {[%clk 0:00:05.3]} 47. Bb1
{[%clk 0:00:02.4]} 47... f4 {[%clk 0:00:04.5]} 48. e7 {[%clk 0:00:01.3]} 48...
Kd7 {[%clk 0:00:02.4]} 49. Bf5+ {[%clk 0:00:01.4]} 1-0